bitfinex/quotes_BTCUSD_20251208
["timestamp","ask_amount","ask_price","bid_price","bid_amount"]
[1765208705725,0.00099999,89760.0,89754.0,0.23397185]
[1765208706073,0.0520869,89759.0,89758.0,0.001]
[1765208706246,0.04094596,89759.0,89758.0,0.001]
[1765208706471,0.0178,89759.0,89757.0,0.22282175]
[1765208706651,0.00099999,89770.0,89768.0,0.22279511]
[1765208706830,0.01113982,89768.0,89764.0,0.001]
[1765208707030,0.02214596,89763.0,89762.0,0.01114057]
[1765208707238,0.02214596,89763.0,89762.0,0.23395087]
[1765208707436,0.01368353,89770.0,89762.0,0.23395087]
[1765208707437,0.00154397,89770.0,89769.0,0.22279406]
[1765208707641,0.01934397,89770.0,89769.0,0.22279406]
[1765208707806,0.03994596,89770.0,89769.0,0.38630524]
[1765208708008,0.02214596,89781.0,89777.0,0.01113871]
[1765208708231,0.02214596,89781.0,89762.0,0.2228103]
[1765208708232,0.27055763,89796.0,89790.0,0.01113709]
[1765208708511,0.02214596,89799.0,89795.0,0.22272951]
[1765208708754,0.01113771,89785.0,89780.0,0.04281833]
[1765208708964,0.0178,89785.0,89784.0,0.23389355]
[1765208709196,0.00099999,89790.0,89788.0,0.22274691]
[1765208709383,0.22427114,89796.0,89788.0,0.22274691]
[1765208709384,0.00154397,89796.0,89795.0,0.22272955]
[1765208709585,0.01934397,89796.0,89794.0,0.22273191]
[1765208709718,0.01934397,89796.0,89794.0,0.22273078]
[1765208710648,0.01934397,89796.0,89784.0,0.003]
[1765208710649,0.01313707,89790.0,89784.0,0.003]
[1765208711010,0.02214596,89785.0,89784.0,0.003]
[1765208711214,0.02214596,89781.0,89780.0,0.04281833]
[1765208711405,0.02214596,89776.0,89774.0,0.23392043]
[1765208712095,0.001,89785.0,89784.0,0.23889467]
[1765208712239,0.00154397,89796.0,89795.0,0.22272955]
[1765208712447,0.01934397,89796.0,89795.0,0.22272955]
[1765208712643,0.02134397,89796.0,89795.0,0.22272955]
[1765208712844,0.04348993,89796.0,89795.0,0.22272955]
[1765208713049,0.04148993,89796.0,89795.0,0.22272955]
[1765208713252,0.0178,89796.0,89795.0,0.28358955]
[1765208713549,0.0198,89796.0,89795.0,0.37823955]
[1765208713868,0.0004,89800.0,89799.0,0.22271962]
[1765208714056,0.0182,89800.0,89799.0,0.28357962]
[1765208714602,0.0004,89800.0,89799.0,0.37722962]
[1765208715474,0.0004,89810.0,89809.0,0.22269483]
[1765208715618,0.0004,89810.0,89809.0,0.33032143]
[1765208715804,0.0004,89810.0,89809.0,0.42397143]
[1765208716209,0.00099999,89840.0,89822.0,0.22266259]
[1765208716568,0.02953401,89860.0,89849.0,0.22259568]
[1765208716569,0.0178,89851.0,89849.0,0.22259568]
[1765208716810,0.0178,89851.0,89850.0,0.02448561]
[1765208716940,0.0178,89851.0,89850.0,0.20704561]
[1765208717147,0.01864154,89851.0,89850.0,0.20704561]
[1765208717358,0.00084154,89851.0,89850.0,0.20704561]
[1765208718288,0.00184154,89851.0,89850.0,0.21004561]
[1765208718466,0.0004,89860.0,89859.0,0.22257091]
[1765208718668,0.0004,89860.0,89859.0,0.33017155]
[1765208718838,0.0004,89860.0,89859.0,0.42382155]
[1765208719903,0.0014,89860.0,89859.0,0.42482155]
[1765208720389,0.0004,89860.0,89859.0,0.42382155]
[1765208720799,0.0014,89860.0,89859.0,0.33117155]
[1765208721043,0.00494397,89860.0,89859.0,0.014]
[1765208721216,0.02708993,89860.0,89859.0,0.014]
[1765208721373,0.02508993,89860.0,89859.0,0.001]
[1765208721574,0.02608993,89860.0,89859.0,0.009]
[1765208721801,0.00394397,89860.0,89859.0,0.03549663]
[1765208721983,0.02508993,89860.0,89859.0,0.02749663]
[1765208722380,0.0014,89860.0,89859.0,0.38108091]
[1765208722974,0.0024,89860.0,89859.0,0.28843091]
[1765208723175,0.0024,89860.0,89859.0,0.38208091]
[1765208723332,0.0014,89860.0,89859.0,0.38108091]
[1765208723534,0.0014,89860.0,89859.0,0.37808091]
[1765208723741,0.0024,89860.0,89859.0,0.39635139]
[1765208724161,0.00167043,89860.0,89859.0,0.39235139]
[1765208724371,0.00267043,89860.0,89859.0,0.39635139]
[1765208724765,0.00267043,89860.0,89859.0,0.11292048]
[1765208725137,0.0042144,89860.0,89859.0,0.11292048]
[1765208725343,0.24892879,89860.0,89859.0,0.005]
[1765208725959,0.0042144,89860.0,89859.0,0.005]
[1765208726454,0.4680444,89860.0,89859.0,0.005]
[1765208726706,1.21103336,89860.0,89859.0,0.005]
[1765208727053,0.0042144,89860.0,89859.0,0.06586]
[1765208727252,0.00267043,89860.0,89859.0,0.19169186]
[1765208727525,0.0042144,89860.0,89859.0,0.19169186]
[1765208727725,0.0032144,89860.0,89859.0,0.18769186]
[1765208727885,0.0062144,89860.0,89859.0,0.18869186]
[1765208728086,0.0052144,89860.0,89859.0,0.18769186]
[1765208728291,0.0022144,89860.0,89859.0,0.18669186]
[1765208728638,0.0022144,89860.0,89859.0,0.004]
[1765208728639,0.0032144,89860.0,89859.0,0.004]
[1765208728983,0.1435544,89860.0,89859.0,0.004]
[1765208729176,0.51652141,89860.0,89859.0,0.004]
[1765208729420,1.37385836,89860.0,89859.0,0.004]
[1765208729616,1.37885836,89860.0,89859.0,0.004]
[1765208729993,1.24599736,89860.0,89859.0,0.004]
[1765208730206,1.15630836,89860.0,89859.0,0.003]
[1765208730645,1.21883135,89860.0,89859.0,0.003]
[1765208730847,0.01113213,89830.0,89827.0,0.23378201]
[1765208731098,0.02214596,89829.0,89828.0,0.05018207]
[1765208731763,0.01113312,89822.0,89819.0,0.0111335]
[1765208731962,0.011133,89823.0,89817.0,0.01113374]
[1765208732164,0.02214596,89823.0,89817.0,0.01113374]
[1765208732367,0.25593983,89823.0,89819.0,0.0111335]
[1765208732549,0.03327896,89823.0,89819.0,0.0367415]
[1765208732751,0.22266012,89823.0,89817.0,0.01113374]
[1765208732951,0.67952198,89830.0,89797.0,0.53909751]
[1765208732952,0.02214596,89814.0,89812.0,0.01113436]
[1765208733252,0.02214596,89814.0,89809.0,0.01113474]
[1765208733253,0.05108008,89814.0,89809.0,0.2338279]
[1765208733487,0.05108008,89814.0,89797.0,0.09365]
[1765208733488,0.01113734,89788.0,89779.0,0.01113846]
[1765208733678,0.00099999,89790.0,89761.0,0.33421992]
[1765208733679,0.659722,89789.0,89786.0,0.22274966]
[1765208734018,0.01113684,89792.0,89788.0,0.01113734]
[1765208734137,0.01113684,89792.0,89781.0,0.01113821]
[1765208734138,0.02214596,89784.0,89775.0,0.01113895]
[1765208734348,0.0178,89788.0,89775.0,0.01113895]
[1765208734349,0.01213832,89780.0,89775.0,0.01113895]
[1765208734561,0.02214596,89777.0,89776.0,0.01113883]
[1765208734765,0.02214596,89777.0,89774.0,0.23391902]
[1765208734766,0.02214596,89775.0,89774.0,0.01113908]
[1765208735066,0.03998596,89775.0,89774.0,0.03564516]
[1765208735713,0.02214596,89774.0,89772.0,0.22278572]
[1765208736132,0.00199998,89780.0,89771.0,0.23392597]
[1765208736133,0.02214596,89780.0,89779.0,0.22276924]
[1765208736286,0.03994596,89780.0,89779.0,0.22276924]
[1765208736481,0.02214596,89780.0,89779.0,0.22276924]
[1765208736742,0.02214596,89780.0,89777.0,0.01113871]
[1765208736743,0.03994596,89780.0,89777.0,0.01113871]
[1765208736964,0.01113846,89779.0,89776.0,0.01113883]
[1765208737083,0.01113846,89779.0,89767.0,0.01113995]
[1765208737084,0.0111392,89773.0,89767.0,0.01113995]
[1765208737290,0.0111392,89773.0,89767.0,0.00565401]
[1765208737291,0.23393227,89770.0,89767.0,0.00565401]
[1765208737511,0.02214596,89765.0,89764.0,0.2339445]
[1765208737722,0.02214596,89765.0,89762.0,0.01114057]
[1765208737723,0.0111361,89798.0,89787.0,0.01113746]
[1765208737933,0.0111361,89798.0,89778.0,0.01113858]
[1765208737934,0.0178,89797.0,89793.0,0.23386989]
[1765208738133,0.0178,89797.0,89795.0,0.22272796]
[1765208738333,0.05654917,89801.0,89795.0,0.22272796]
[1765208738334,0.02214596,89796.0,89795.0,0.22272796]
[1765208738535,0.00154397,89801.0,89800.0,0.22271714]
[1765208738737,0.03328194,89799.0,89796.0,0.01113635]
[1765208739051,0.03328194,89799.0,89796.0,0.23386257]
[1765208739254,0.02214596,89799.0,89796.0,0.23386257]
[1765208739461,0.23385923,89798.0,89793.0,0.23387017]
[1765208739609,0.02214596,89795.0,89794.0,0.02177047]
[1765208739808,0.02214596,89792.0,89791.0,0.2338756]
[1765208740011,0.01113622,89797.0,89793.0,0.23386995]
[1765208740211,0.22272955,89795.0,89789.0,0.01113722]
[1765208740413,0.02214596,89790.0,89789.0,0.01113722]
[1765208740729,0.00154397,89798.0,89789.0,0.01113722]
[1765208740730,0.001,89798.0,89797.0,0.31344458]
[1765208740953,0.01784,89798.0,89797.0,0.31344458]
[1765208741153,0.003,89799.0,89797.0,0.40709458]
[1765208741502,0.01784,89804.0,89802.0,0.22271218]
[1765208741648,0.01784,89804.0,89803.0,0.00061386]
[1765208741870,0.01784,89804.0,89803.0,0.23769146]
[1765208742216,0.02214596,89819.0,89817.0,0.01113374]
[1765208742333,0.01784,89818.0,89817.0,0.23380863]
[1765208742536,0.00154397,89820.0,89819.0,0.22267003]
[1765208742741,0.01938397,89820.0,89819.0,0.04996628]
[1765208743054,0.01938397,89820.0,89818.0,0.25472137]
[1765208743256,0.01113374,89817.0,89814.0,0.01113412]
[1765208743451,0.002,89818.0,89817.0,0.008]
[1765208743636,0.001,89819.0,89817.0,0.22267356]
[1765208743834,0.02214596,89818.0,89817.0,0.22267356]
[1765208744035,0.02214596,89817.0,89816.0,0.01113387]
[1765208744439,0.00154397,89820.0,89819.0,0.22267003]
[1765208744644,0.02214596,89836.0,89827.0,0.01113251]
[1765208744839,0.02214596,89836.0,89834.0,0.22263236]
[1765208745051,0.02214596,89846.0,89845.0,0.22260338]
[1765208745261,0.03998596,89846.0,89845.0,0.22260338]
[1765208745494,0.03998596,89846.0,89844.0,0.0111304]
[1765208745495,0.03998596,89846.0,89844.0,0.22260807]
[1765208745696,0.03998596,89846.0,89843.0,0.26799942]
[1765208746073,0.05266008,89846.0,89843.0,0.03426]
[1765208746279,0.05266008,89846.0,89837.0,0.01113127]
[1765208746280,0.02214596,89832.0,89831.0,0.23377074]
[1765208746503,0.26262377,89832.0,89828.0,0.01113238]
[1765208746704,0.08398596,89829.0,89822.0,0.01113312]
[1765208746916,0.00154397,89829.0,89826.0,0.22265188]
[1765208747127,0.02214596,89827.0,89826.0,0.22265227]
[1765208747333,0.01267623,89829.0,89826.0,0.2337849]
[1765208747539,0.00154397,89829.0,89823.0,0.02986]
[1765208747739,0.002,89832.0,89829.0,0.01113226]
[1765208747878,0.01784,89831.0,89830.0,0.23648982]
[1765208748095,0.01784,89831.0,89830.0,0.33302982]
[1765208748295,0.002,89832.0,89830.0,0.39710982]
[1765208748528,0.002,89832.0,89831.0,0.06408]
[1765208748728,0.02214596,89838.0,89837.0,0.01113127]
[1765208748930,0.33413065,89842.0,89839.0,0.23374955]
[1765208749131,0.01784,89841.0,89839.0,0.23374955]
[1765208749343,0.323,89842.0,89840.0,0.22261699]
[1765208749593,0.02214596,89844.0,89840.0,0.22261699]
[1765208749594,0.02214596,89844.0,89842.0,0.2226111]
[1765208749807,0.01113077,89841.0,89830.0,0.01384706]
[1765208750009,0.22263037,89835.0,89829.0,0.01113226]
[1765208750234,0.02214596,89831.0,89830.0,0.01113213]
[1765208750450,0.03998596,89831.0,89830.0,0.039723]
[1765208750659,0.03998596,89831.0,89823.0,0.26365312]
[1765208750660,0.02214596,89824.0,89823.0,0.26365312]
[1765208751072,0.02214596,89826.0,89823.0,0.02986]
[1765208751231,0.02214596,89826.0,89823.0,0.23379035]
[1765208751412,0.02214596,89826.0,89824.0,0.25124863]
[1765208751837,0.001,89831.0,89829.0,0.22264524]
[1765208752062,0.00099999,89840.0,89837.0,0.01113127]
[1765208752261,0.01784,89839.0,89837.0,0.01113127]
[1765208752464,0.02214596,89841.0,89840.0,0.22261798]
[1765208752679,0.03998596,89841.0,89839.0,0.22261979]
[1765208752870,0.22259376,89850.0,89847.0,0.01113003]
[1765208753069,0.01784,89849.0,89847.0,0.01113003]
[1765208753308,0.01784,89849.0,89848.0,0.22259816]
[1765208753527,0.01938397,89849.0,89846.0,0.01113015]
[1765208753695,0.00154397,89849.0,89847.0,0.22260053]
[1765208753896,0.323,89853.0,89852.0,0.22258825]
[1765208754056,0.3408,89853.0,89852.0,0.32092825]
[1765208754684,0.0178,89853.0,89852.0,0.32092825]
[1765208754887,0.00024039,89859.0,89857.0,0.22257523]
[1765208755085,0.0178,89858.0,89855.0,0.01112904]
[1765208755290,0.02214596,89856.0,89855.0,0.2337086]
[1765208755675,0.02368993,89856.0,89855.0,0.2337086]
[1765208755875,0.02214596,89853.0,89852.0,0.001]
[1765208756113,0.01112978,89849.0,89846.0,0.23373205]
[1765208756342,0.01113065,89842.0,89836.0,0.01113139]
[1765208756476,0.02214596,89836.0,89835.0,0.23376188]
[1765208756675,0.02214596,89836.0,89817.0,0.09654]
[1765208756871,0.02214596,89836.0,89826.0,0.22265268]
[1765208756872,0.02214596,89827.0,89826.0,0.22265268]
[1765208757081,0.01113312,89822.0,89814.0,0.01113412]
[1765208757348,0.03327983,89816.0,89811.0,0.01113449]
[1765208757552,0.03327983,89816.0,89810.0,0.01113461]
[1765208757553,0.01113412,89814.0,89810.0,0.01113461]
[1765208757741,0.02214596,89811.0,89810.0,0.23382538]
[1765208757956,0.0178,89815.0,89814.0,0.22268243]
[1765208757957,0.03994596,89815.0,89814.0,0.22268243]
[1765208758990,0.02214596,89814.0,89813.0,0.2226836]
[1765208759794,0.0178,89815.0,89813.0,0.2226836]
[1765208759991,0.34514596,89821.0,89818.0,0.22266969]
[1765208760192,0.0178,89820.0,89819.0,0.22267003]
[1765208760898,0.00199998,89850.0,89838.0,0.01113114]
[1765208761104,0.09394886,89860.0,89838.0,0.01113114]
[1765208761105,0.02214596,89853.0,89851.0,0.01112953]
[1765208761308,0.02214596,89853.0,89852.0,0.22258825]
[1765208761486,0.02806175,89859.0,89856.0,0.23370688]
[1765208761686,0.02214596,89854.0,89853.0,0.01112928]
[1765208761886,0.02214596,89852.0,89851.0,0.2337186]
[1765208762210,0.02214596,89852.0,89851.0,0.2347186]
[1765208762509,0.02214596,89849.0,89848.0,0.0111299]
[1765208762710,0.323,89853.0,89850.0,0.23372005]
[1765208762888,0.323,89853.0,89851.0,0.22259073]
[1765208763695,0.0178,89854.0,89853.0,0.22258577]
[1765208763861,0.0198,89854.0,89853.0,0.22358577]
[1765208764468,0.0178,89854.0,89853.0,0.22258577]
[1765208765107,0.0198,89854.0,89853.0,0.22358577]
[1765208765301,0.0178,89854.0,89853.0,0.22258577]
[1765208765615,0.003,89854.0,89853.0,0.22458577]
[1765208765848,0.002,89854.0,89853.0,0.45119466]
[1765208766061,0.0198,89854.0,89853.0,0.45119466]
[1765208766333,0.0208,89854.0,89853.0,0.45219466]
[1765208766543,0.003,89854.0,89853.0,0.45219466]
[1765208766714,0.001,89854.0,89853.0,0.45119466]
[1765208766933,0.001,89854.0,89853.0,0.45219466]
[1765208767097,0.002,89854.0,89853.0,0.45219466]
[1765208767299,0.001,89854.0,89853.0,0.45119466]
[1765208767498,0.00024039,89859.0,89853.0,0.45119466]
[1765208767499,0.00024039,89859.0,89858.0,0.22257339]
[1765208767869,0.00024039,89859.0,89858.0,0.38001651]
[1765208768073,0.00024039,89859.0,89858.0,0.47182651]
[1765208768309,0.00024039,89859.0,89858.0,0.49402651]
[1765208768507,0.00024039,89859.0,89858.0,0.47182651]
[1765208768664,0.00024039,89859.0,89858.0,0.49402651]
[1765208768862,0.00124039,89859.0,89858.0,0.50302651]
[1765208769233,0.00024039,89859.0,89858.0,0.49402651]
[1765208769653,0.0004,89870.0,89869.0,0.22254615]
[1765208769889,0.0004,89870.0,89869.0,0.31048356]
[1765208770106,0.0004,89870.0,89869.0,0.42449356]
[1765208770325,0.0004,89880.0,89879.0,0.22252138]
[1765208770539,0.0004,89880.0,89879.0,0.30929138]
[1765208770744,0.0004,89880.0,89879.0,0.28709138]
[1765208770935,0.0004,89880.0,89879.0,0.48577529]
[1765208771678,0.0004,89880.0,89879.0,0.39396529]
[1765208771866,0.00394397,89880.0,89879.0,0.016]
[1765208772076,0.03957397,89880.0,89879.0,0.002]
[1765208772249,0.48063883,89880.0,89879.0,0.00115207]
[1765208772445,0.36357397,89880.0,89879.0,0.01215207]
[1765208772591,0.47162397,89880.0,89879.0,0.01215207]
[1765208772792,0.49376993,89880.0,89879.0,0.01215207]
[1765208773148,0.55629292,89880.0,89879.0,0.01215207]
[1765208773380,0.55529292,89880.0,89879.0,0.011]
[1765208773514,0.0131284,89860.0,89856.0,0.01112891]
[1765208773718,0.02214596,89858.0,89857.0,0.01112879]
[1765208773917,0.02214596,89858.0,89857.0,0.23370379]
[1765208774459,0.33412755,89867.0,89861.0,0.01112829]
[1765208774616,0.04561919,89866.0,89864.0,0.22255775]
[1765208774803,0.26817491,89866.0,89862.0,0.01112817]
[1765208775005,0.22255672,89865.0,89863.0,0.04896597]
[1765208775207,0.02214596,89862.0,89858.0,0.01112866]
[1765208775605,0.00099999,89850.0,89821.0,0.01113325]
[1765208775872,0.00099999,89850.0,89828.0,0.2226465]
[1765208775873,0.00099999,89830.0,89828.0,0.2226465]
[1765208776116,0.22265857,89824.0,89821.0,0.01113325]
[1765208776316,0.22265857,89824.0,89807.0,0.22269939]
[1765208776317,0.01113362,89818.0,89814.0,0.01113412]
[1765208776524,0.01113362,89818.0,89815.0,0.22267924]
[1765208776724,0.00199998,89820.0,89816.0,0.0489901]
[1765208776932,0.23580163,89820.0,89816.0,0.0489901]
[1765208777148,0.23580163,89820.0,89816.0,0.2828004]
[1765208777149,0.0111335,89819.0,89816.0,0.2828004]
[1765208777369,0.2338044,89819.0,89816.0,0.0489901]
[1765208777572,0.02214596,89817.0,89815.0,0.01113399]
[1765208777787,0.02214596,89817.0,89815.0,0.001]
[1765208777788,0.0178,89816.0,89815.0,0.001]
[1765208778122,0.0178,89816.0,89809.0,0.2226946]
[1765208778123,0.02214596,89810.0,89809.0,0.23382833]
[1765208778255,0.003,89819.0,89813.0,0.01113424]
[1765208778459,0.24047325,89818.0,89816.0,0.001]
[1765208778866,0.02214596,89817.0,89816.0,0.001]
[1765208779296,0.34514596,89817.0,89816.0,0.001]
[1765208779451,0.3408,89817.0,89815.0,0.2226789]
[1765208779666,0.3408,89817.0,89816.0,0.07237118]
[1765208779925,0.3408,89817.0,89815.0,0.2236789]
[1765208780124,0.34234397,89817.0,89815.0,0.2226789]
[1765208780280,0.01934397,89817.0,89815.0,0.2226789]
[1765208780482,0.02334397,89817.0,89816.0,0.001]
[1765208780708,0.002,89817.0,89815.0,0.2226789]
[1765208780916,0.0198,89817.0,89816.0,0.0946404]
[1765208781118,0.323,89819.0,89816.0,0.0946404]
[1765208781119,0.323,89819.0,89817.0,0.22267499]
[1765208781316,0.02214596,89825.0,89823.0,0.23379308]
[1765208781650,0.01113226,89829.0,89826.0,0.23378499]
[1765208781795,0.0111335,89819.0,89816.0,0.01113387]
[1765208782132,0.0111335,89819.0,89795.0,0.09086]
[1765208782133,0.02214596,89824.0,89820.0,0.01113337]
[1765208782334,0.011133,89823.0,89818.0,0.01113362]
[1765208782552,0.011133,89823.0,89819.0,0.23380135]
[1765208782738,0.323,89828.0,89826.0,0.22265268]
[1765208782885,0.323,89828.0,89825.0,0.01113275]
[1765208783090,0.02897251,89827.0,89824.0,0.23378969]
[1765208783368,0.01784,89827.0,89825.0,0.22265443]
[1765208783592,0.00199998,89840.0,89828.0,0.22264772]
[1765208783763,0.02214596,89837.0,89830.0,0.01113213]
[1765208783968,0.02893139,89836.0,89831.0,0.23377148]
[1765208784332,0.22263385,89834.0,89831.0,0.01113201]
[1765208784686,0.0178,89836.0,89833.0,0.23376448]
[1765208784842,0.0178,89836.0,89833.0,0.233765]
[1765208785049,0.0178,89836.0,89834.0,0.22263214]
[1765208785406,0.2404303,89836.0,89834.0,0.04742742]
[1765208785605,0.02214596,89828.0,89827.0,0.23378271]
[1765208785888,0.02214596,89834.0,89833.0,0.22263504]
[1765208786065,0.02214596,89831.0,89830.0,0.001]
[1765208786266,0.02214596,89829.0,89828.0,0.23377874]
[1765208786583,0.02214596,89829.0,89828.0,0.26280914]
[1765208786788,0.02368993,89829.0,89827.0,0.001]
[1765208786967,0.24633557,89829.0,89827.0,0.001]
[1765208787171,0.00099999,89810.0,89808.0,0.01113486]
[1765208787490,0.00099999,89810.0,89807.0,0.01113498]
[1765208787491,0.03994596,89809.0,89807.0,0.22269928]
[1765208787704,0.03994596,89809.0,89808.0,0.05108547]
[1765208787998,0.03994596,89809.0,89806.0,0.23383479]
[1765208788220,0.03994596,89809.0,89807.0,0.22269938]
[1765208788907,0.03994596,89809.0,89805.0,0.23383462]
[1765208789208,0.10959397,89809.0,89801.0,0.01113573]
[1765208789416,0.02214596,89803.0,89802.0,0.0111356]
[1765208789711,0.0111356,89802.0,89797.0,0.01113622]
[1765208790018,0.02214596,89798.0,89797.0,0.02770488]
[1765208790155,0.0178,89798.0,89791.0,0.2227376]
[1765208790360,0.02214596,89788.0,89787.0,0.01113746]
[1765208790560,0.02214596,89788.0,89770.0,0.09086]
[1765208790561,0.06055362,89818.0,89811.0,0.01113449]
[1765208790824,0.01113374,89817.0,89813.0,0.22268491]
[1765208790994,0.03994596,89816.0,89815.0,0.01113399]
[1765208791204,0.02214596,89816.0,89815.0,0.23381347]
[1765208791519,0.03994596,89816.0,89815.0,0.23381347]
[1765208791814,0.02214596,89814.0,89813.0,0.01113424]
[1765208792019,0.02214596,89814.0,89813.0,0.03674326]
[1765208792262,0.02214596,89811.0,89808.0,0.01113486]
[1765208792454,0.02214596,89810.0,89809.0,0.23382752]
[1765208793133,0.02214596,89809.0,89808.0,0.01113486]
[1765208793335,0.02214596,89808.0,89807.0,0.23383274]
[1765208793751,0.02214596,89804.0,89800.0,0.22271662]
[1765208793897,0.02214596,89802.0,89801.0,0.07113495]
[1765208794098,0.02214596,89798.0,89797.0,0.23385869]
[1765208794333,0.06231,89801.0,89793.0,0.01113672]
[1765208794334,0.02214596,89795.0,89793.0,0.01113672]
[1765208794537,0.02214596,89794.0,89793.0,0.01113672]
[1765208794842,0.02214596,89792.0,89791.0,0.23387438]
[1765208795018,0.02214596,89791.0,89788.0,0.01113734]
[1765208795543,0.01113709,89790.0,89787.0,0.01113746]
[1765208795745,0.01113709,89790.0,89786.0,0.01113759]
[1765208795746,0.323,89789.0,89786.0,0.01113759]
[1765208795926,0.323,89789.0,89787.0,0.2227493]
[1765208796242,0.323,89789.0,89783.0,0.22275751]
[1765208796243,0.01113821,89781.0,89777.0,0.23391213]
[1765208796473,0.41325,89788.0,89777.0,0.23391213]
[1765208796474,0.02214596,89779.0,89778.0,0.2339091]
[1765208796611,0.0178,89780.0,89779.0,0.22276924]
[1765208796814,0.0178,89780.0,89776.0,0.23391487]
[1765208797039,0.0178,89780.0,89778.0,0.22277021]
[1765208797559,0.01113846,89779.0,89774.0,0.23392054]
[1765208797791,0.01113846,89779.0,89765.0,0.00362618]
[1765208797792,0.02214596,89766.0,89765.0,0.00362618]
[1765208798023,0.03994596,89766.0,89765.0,0.0694447]
[1765208798643,0.0178,89766.0,89765.0,0.0694447]
[1765208799053,0.0178,89766.0,89765.0,0.01476637]
[1765208799213,0.0198,89766.0,89765.0,0.01876637]
[1765208799414,0.002,89766.0,89765.0,0.07966637]
[1765208799617,0.002,89766.0,89765.0,0.17094933]
[1765208800006,0.002,89766.0,89765.0,0.17161461]
[1765208800239,0.002,89766.0,89765.0,0.26537243]
[1765208800450,0.001,89766.0,89765.0,0.28248419]
[1765208801028,0.0178,89782.0,89779.0,0.01113846]
[1765208801236,0.0178,89782.0,89780.0,0.22326376]
[1765208801497,0.00099999,89800.0,89787.0,0.01113746]
[1765208801656,0.02214596,89805.0,89804.0,0.22270722]
[1765208801997,0.03994596,89805.0,89804.0,0.22270722]
[1765208803039,0.04948993,89805.0,89804.0,0.22240722]
[1765208803386,0.04548993,89805.0,89804.0,0.22140722]
[1765208803587,0.04648993,89805.0,89804.0,0.22240722]
[1765208803959,0.04248993,89805.0,89804.0,0.22240722]
[1765208804461,0.04448993,89805.0,89804.0,0.22240722]
[1765208804967,0.07275993,89805.0,89804.0,0.001]
[1765208805360,0.02234397,89805.0,89804.0,0.22370722]
[1765208805870,0.17014993,89805.0,89804.0,0.001]
[1765208806247,0.17014993,89805.0,89804.0,0.22370722]
[1765208806462,0.02234397,89805.0,89804.0,0.28797722]
[1765208806667,0.0208,89805.0,89804.0,0.28797722]
[1765208807868,0.003,89805.0,89804.0,0.38358722]
[1765208808097,0.003,89805.0,89804.0,0.4920665]
[1765208808711,0.001,89805.0,89804.0,0.4920665]
[1765208808870,0.0178,89839.0,89838.0,0.01113114]
[1765208809071,0.0178,89839.0,89838.0,0.10746114]
[1765208809273,0.0178,89839.0,89838.0,0.34194332]
[1765208809492,0.01212965,89850.0,89843.0,0.01113052]
[1765208809842,0.00199998,89830.0,89824.0,0.04319288]
[1765208810043,0.00199998,89830.0,89814.0,0.09561]
[1765208810044,0.01113275,89825.0,89817.0,0.01113374]
[1765208810182,0.02214596,89822.0,89816.0,0.01113387]
[1765208810364,0.03258,89817.0,89813.0,0.22268491]
[1765208810565,0.0178,89816.0,89815.0,0.22267944]
[1765208810759,0.0178,89816.0,89814.0,0.22268243]
[1765208811419,0.02893387,89816.0,89811.0,0.03206]
[1765208811622,0.02893387,89816.0,89785.0,0.44550794]
[1765208811623,0.01113598,89799.0,89795.0,0.01113647]
[1765208811824,0.03328206,89798.0,89794.0,0.0111366]
[1765208812102,0.0178,89800.0,89795.0,0.23386336]
[1765208812221,0.0178,89800.0,89797.0,0.01113622]
[1765208812430,0.02214596,89796.0,89795.0,0.01113647]
[1765208812632,0.02214596,89796.0,89795.0,0.28474042]
[1765208813559,0.24487303,89796.0,89795.0,0.0518744]
[1765208813759,0.714437,89796.0,89795.0,0.001]
[1765208814199,0.02214596,89781.0,89780.0,0.23390391]
[1765208814396,0.03994596,89781.0,89780.0,0.23390391]
[1765208815495,0.04094596,89781.0,89780.0,0.33046845]
[1765208815851,0.0188,89781.0,89780.0,0.49034845]
[1765208816082,0.001,89781.0,89780.0,0.49034845]
[1765208816678,0.002,89781.0,89780.0,0.49034845]
[1765208817475,0.002,89781.0,89780.0,0.33046845]
[1765208818355,0.002,89781.0,89780.0,0.003]
[1765208818535,0.02414596,89781.0,89780.0,0.003]
[1765208819182,0.002,89781.0,89780.0,0.003]
[1765208819617,0.0198,89781.0,89780.0,0.003]
[1765208819774,0.0198,89781.0,89780.0,0.15796]
[1765208819974,0.0198,89781.0,89780.0,0.26620716]
[1765208820260,0.0198,89781.0,89780.0,0.17419716]
[1765208821140,0.002,89781.0,89780.0,0.26620716]
[1765208821321,0.0178,89796.0,89795.0,0.01113647]
[1765208821529,0.0178,89796.0,89795.0,0.03563698]
[1765208821896,0.0178,89796.0,89795.0,0.22155698]
[1765208822098,0.00199998,89810.0,89795.0,0.22155698]
[1765208822099,0.00099999,89810.0,89807.0,0.01113498]
[1765208822269,0.0178,89809.0,89808.0,0.2226973]
[1765208822883,0.0178,89809.0,89808.0,0.2856473]
[1765208823084,0.0178,89809.0,89808.0,0.45410308]
[1765208823287,0.0178,89809.0,89808.0,0.36209308]
[1765208823648,0.002,89809.0,89808.0,0.45510308]
[1765208823998,0.002,89809.0,89808.0,0.47730308]
[1765208824503,0.004,89809.0,89808.0,0.47730308]
[1765208824702,0.004,89809.0,89808.0,0.53230828]
[1765208824915,0.0178,89834.0,89833.0,0.22263533]
[1765208825260,0.22257114,89859.0,89833.0,0.22263533]
[1765208825261,0.0178,89853.0,89852.0,0.22258825]
[1765208825482,0.00099999,89860.0,89857.0,0.23370419]
[1765208825776,0.0178,89859.0,89857.0,0.23370419]
[1765208825978,0.0178,89859.0,89852.0,0.22258629]
[1765208825979,0.14258397,89858.0,89851.0,0.01112953]
[1765208826137,0.02214596,89855.0,89854.0,0.01112916]
[1765208826340,0.32454397,89858.0,89855.0,0.01112904]
[1765208826640,0.22258462,89854.0,89852.0,0.001]
[1765208826841,0.02214596,89853.0,89852.0,0.001]
[1765208827153,0.02214596,89853.0,89836.0,0.22262661]
[1765208827154,0.0111304,89844.0,89838.0,0.01113114]
[1765208827479,0.0178,89843.0,89840.0,0.23374782]
[1765208827774,0.0178,89843.0,89841.0,0.22261379]
[1765208827997,0.0178,89843.0,89842.0,0.06295]
[1765208828148,0.00199998,89850.0,89842.0,0.15496]
[1765208828149,0.00099999,89850.0,89842.0,0.15496]
[1765208828350,0.0198,89855.0,89854.0,0.2225833]
[1765208828548,0.0178,89855.0,89854.0,0.27673511]
[1765208829998,0.0178,89855.0,89854.0,0.05415181]
[1765208830196,0.08975993,89855.0,89854.0,0.001]
[1765208830522,0.50736993,89855.0,89854.0,0.001]
[1765208831284,0.50936993,89855.0,89854.0,0.001]
[1765208831704,0.02214596,89839.0,89838.0,0.23375331]